bitfinex/quotes_BTCUSD_20230404
["timestamp","ask_amount","ask_price","bid_price","bid_amount"]
[1680605918203,0.15653601,28229.0,28226.0,0.06630548]
[1680605918414,0.15653601,28229.0,28228.0,0.0837]
[1680605918867,0.04970389,28231.0,28228.0,0.0837]
[1680605919087,0.15634778,28230.0,28229.0,0.0835]
[1680605920044,0.16034778,28230.0,28229.0,0.0835]
[1680605921048,0.15634778,28230.0,28229.0,0.0835]
[1680605921266,0.15634778,28230.0,28229.0,0.0955]
[1680605928189,0.15628118,28230.0,28229.0,0.0955]
[1680605930000,0.15628118,28230.0,28229.0,0.09539859]
[1680605930635,0.15628118,28230.0,28229.0,0.23539859]
[1680605931485,0.00018,28231.0,28230.0,0.25]
[1680605931720,0.00018,28232.0,28230.0,0.25]
[1680605931913,0.15627297,28232.0,28230.0,0.25]
[1680605932113,0.15627297,28232.0,28229.0,0.23539859]
[1680605932632,0.15627297,28232.0,28229.0,0.22339859]
[1680605932857,0.15627297,28232.0,28230.0,0.006]
[1680605933300,0.15627297,28232.0,28229.0,0.23539859]
[1680605933747,0.15627297,28232.0,28229.0,0.22339859]
[1680605933940,0.15627297,28232.0,28230.0,0.006]
[1680605934056,0.15627297,28232.0,28229.0,0.22339859]
[1680605934288,0.15627297,28232.0,28229.0,0.23539859]
[1680605934496,0.15627297,28232.0,28231.0,0.00045306]
[1680605934717,0.21066797,28232.0,28231.0,0.00045306]
[1680605935161,0.62686342,28232.0,28231.0,0.00045306]
[1680605935384,0.61694642,28232.0,28229.0,0.22339859]
[1680605935606,0.2094117,28231.0,28230.0,0.006]
[1680605935828,0.2095917,28231.0,28229.0,0.22339859]
[1680605936057,0.053014,28230.0,28229.0,0.22339859]
[1680605936278,0.20929519,28230.0,28229.0,0.22339859]
[1680605936492,0.20947519,28230.0,28229.0,0.22339859]
[1680605936711,0.15646119,28230.0,28229.0,0.22339859]
[1680605936920,0.64161955,28230.0,28229.0,0.14]
[1680605937166,0.64161955,28230.0,28229.0,0.146]
[1680605937167,0.61581595,28230.0,28229.0,0.146]
[1680605939532,0.61981595,28230.0,28229.0,0.142]
[1680605941415,0.61981595,28230.0,28229.0,0.14304643]
[1680605941592,0.61581595,28230.0,28229.0,0.14104643]
[1680605941802,0.61981595,28230.0,28229.0,0.14204643]
[1680605942183,0.61581595,28230.0,28229.0,0.14104643]
[1680605942392,0.69230735,28230.0,28229.0,0.14204643]
[1680605942616,0.65694459,28230.0,28229.0,0.14204643]
[1680605942822,0.91010459,28230.0,28226.0,0.00018]
[1680605943027,0.91010459,28230.0,28221.0,0.01014722]
[1680605943028,0.52826942,28227.0,28221.0,0.01014722]
[1680605943231,0.52877149,28224.0,28221.0,0.01014722]
[1680605943433,0.053265,28223.0,28221.0,0.01014722]
[1680605943601,0.15722258,28222.0,28221.0,0.01014722]
[1680605943965,0.21042358,28222.0,28221.0,0.26014722]
[1680605944286,0.15722258,28222.0,28221.0,0.01014722]
[1680605944510,0.16322258,28222.0,28221.0,0.26114722]
[1680605945366,0.21551158,28222.0,28221.0,0.26114722]
[1680605945596,0.16322258,28222.0,28221.0,0.27532022]
[1680605945813,0.16322258,28222.0,28221.0,0.26014722]
[1680605945814,0.15722258,28222.0,28221.0,0.26014722]
[1680605946024,0.051662,28226.0,28221.0,0.35802022]
[1680605946238,0.15703426,28225.0,28221.0,0.3981547]
[1680605946450,0.15703426,28225.0,28221.0,0.35802022]
[1680605946876,0.006,28222.0,28221.0,0.35902022]
[1680605947094,0.15703426,28225.0,28221.0,0.35802022]
[1680605947310,0.16303426,28225.0,28221.0,0.35902022]
[1680605947554,0.15703426,28225.0,28221.0,0.35802022]
[1680605947765,0.15703426,28225.0,28221.0,0.35902022]
[1680605947766,0.006,28222.0,28221.0,0.35902022]
[1680605948415,0.15703426,28225.0,28221.0,0.35802022]
[1680605948637,0.15903426,28225.0,28221.0,0.37702022]
[1680605948860,0.15703426,28225.0,28221.0,0.35802022]
[1680605949718,0.15703426,28225.0,28221.0,0.37702022]
[1680605949943,0.15703426,28225.0,28221.0,0.35802022]
[1680605950128,0.15903426,28225.0,28221.0,0.37702022]
[1680605950423,0.15903426,28225.0,28221.0,0.35802022]
[1680605950681,0.15703426,28225.0,28221.0,0.37702022]
[1680605950876,0.15903426,28225.0,28221.0,0.37702022]
[1680605951015,0.15703426,28225.0,28221.0,0.35802022]
[1680605951234,0.15903426,28225.0,28221.0,0.37702022]
[1680605951436,0.15703426,28225.0,28221.0,0.35802022]
[1680605951642,0.15903426,28225.0,28221.0,0.37702022]
[1680605952933,0.15703426,28225.0,28221.0,0.35802022]
[1680605953310,0.15903426,28225.0,28221.0,0.37702022]
[1680605954063,0.15703426,28225.0,28221.0,0.35802022]
[1680605954284,0.15903426,28225.0,28221.0,0.37702022]
[1680605954518,0.18340014,28225.0,28221.0,0.37702022]
[1680605954715,0.15903426,28225.0,28221.0,0.37702022]
[1680605962412,0.15903426,28225.0,28221.0,0.36284722]
[1680605962945,0.15894206,28225.0,28221.0,0.36278722]
[1680605963151,0.15894206,28225.0,28221.0,0.02914722]
[1680605963575,0.22479107,28225.0,28221.0,0.02914722]
[1680605964178,0.15894206,28225.0,28221.0,0.02914722]
[1680605964585,0.15694206,28225.0,28221.0,0.01014722]
[1680605964800,0.15894206,28225.0,28221.0,0.02914722]
[1680605966704,0.45473993,28224.0,28221.0,0.02914722]
[1680605966920,0.2116036,28223.0,28221.0,0.02914722]
[1680605967168,0.052587,28222.0,28221.0,0.02914722]
[1680605967389,0.20978014,28222.0,28221.0,0.02914722]
[1680605967832,0.20978014,28222.0,28221.0,0.01014722]
[1680605968083,0.20978014,28222.0,28221.0,0.02914722]
[1680605968305,0.20978014,28222.0,28221.0,0.01014722]
[1680605968524,0.21178014,28222.0,28221.0,0.02914722]
[1680605968736,0.20978014,28222.0,28221.0,0.01014722]
[1680605969181,0.21078014,28222.0,28221.0,0.01714722]
[1680605969416,0.20978014,28222.0,28221.0,0.01014722]
[1680605969644,0.22178014,28222.0,28221.0,0.01114722]
[1680605969863,0.20978014,28222.0,28221.0,0.01014722]
[1680605970767,0.22178014,28222.0,28221.0,0.01114722]
[1680605970987,0.20978014,28222.0,28221.0,0.01014722]
[1680605971206,0.22178014,28222.0,28221.0,0.01114722]
[1680605971662,0.28423555,28222.0,28221.0,0.01114722]
[1680605971904,0.28215655,28222.0,28221.0,0.01014722]
[1680605972124,0.29415655,28222.0,28221.0,0.01114722]
[1680605972339,0.28215655,28222.0,28221.0,0.01014722]
[1680605972556,0.30015655,28222.0,28221.0,0.01214722]
[1680605972787,0.28215655,28222.0,28221.0,0.01014722]
[1680605973852,0.30015655,28222.0,28221.0,0.01214722]
[1680605976050,0.22778014,28222.0,28221.0,0.01214722]
[1680605978631,0.17519314,28222.0,28221.0,0.01214722]
[1680605982422,0.018,28222.0,28221.0,0.01214722]
[1680605982639,0.018,28222.0,28221.0,0.02614022]
[1680605982867,0.018,28222.0,28221.0,0.27614022]
[1680605983082,0.018,28222.0,28221.0,0.27632022]
[1680605983813,0.04347064,28225.0,28221.0,0.27432022]
[1680605984029,0.001,28222.0,28221.0,0.28132022]
[1680605984640,0.15700483,28224.0,28221.0,0.27432022]
[1680605985310,0.15700483,28224.0,28221.0,0.28132022]
[1680605986161,0.15700483,28224.0,28221.0,0.27432022]
[1680605986312,0.15800483,28224.0,28221.0,0.28132022]
[1680605986508,0.15800483,28224.0,28222.0,0.00011008]
[1680605986719,0.15800483,28224.0,28222.0,0.00029008]
[1680605987761,0.15700483,28224.0,28222.0,0.00029008]
[1680605987945,0.15700483,28224.0,28222.0,0.00129008]
[1680605990596,0.04959668,28227.0,28223.0,0.0754]
[1680605990807,0.15675375,28226.0,28224.0,0.367916]
[1680605991015,0.15675375,28226.0,28224.0,0.40823048]
[1680605991269,0.15675375,28226.0,28224.0,0.368096]
[1680605991689,0.15675375,28226.0,28224.0,0.20851342]
[1680605992114,0.15775375,28226.0,28224.0,0.22251342]
[1680605992320,0.15675375,28226.0,28224.0,0.20851342]
[1680605992538,0.15675375,28226.0,28224.0,0.1942795]
[1680605992539,0.15775375,28226.0,28224.0,0.1942795]
[1680605997920,0.15775375,28226.0,28224.0,0.10368208]
[1680605998458,0.15775375,28226.0,28224.0,0.01411008]
[1680605999741,0.43649817,28225.0,28224.0,0.01411008]
[1680605999952,0.59331469,28225.0,28224.0,0.01411008]
[1680606000807,0.59331469,28225.0,28224.0,0.00011008]
[1680606001011,0.59443469,28225.0,28224.0,0.01411008]
[1680606001226,0.59449469,28225.0,28224.0,0.01411008]
[1680606001440,0.21117752,28225.0,28224.0,0.01411008]
[1680606002942,0.00118,28225.0,28224.0,0.01411008]
[1680606003161,0.001,28225.0,28224.0,0.01411008]
[1680606003376,0.001,28225.0,28224.0,0.02828208]
[1680606003590,0.001,28225.0,28224.0,0.51284837]
[1680606003805,0.001,28225.0,28224.0,1.01751303]
[1680606004080,0.001,28225.0,28224.0,1.14447099]
[1680606004277,0.001,28225.0,28224.0,1.32513994]
[1680606004492,0.04993465,28230.0,28224.0,1.35355241]
[1680606004710,0.04993465,28230.0,28229.0,0.0753]
[1680606004922,0.04993465,28230.0,28229.0,0.089469]
[1680606005144,0.00018,28231.0,28229.0,0.089469]
[1680606005554,0.42166709,28233.0,28230.0,0.0040873]
[1680606005765,0.57760511,28233.0,28230.0,0.0040873]
[1680606007100,0.57760511,28233.0,28230.0,0.0242563]
[1680606007313,0.15593802,28233.0,28230.0,0.0242563]
[1680606007523,0.15593802,28233.0,28231.0,0.00513781]
[1680606007733,0.15593802,28233.0,28231.0,0.01930581]
[1680606007951,0.48843065,28235.0,28231.0,0.01930581]
[1680606008163,0.15574983,28234.0,28231.0,0.01930581]
[1680606009710,0.15674983,28234.0,28231.0,0.01930581]
[1680606010366,0.15574983,28234.0,28232.0,0.00530101]
[1680606010594,0.15574983,28234.0,28232.0,0.01946801]
[1680606011892,0.04901495,28235.0,28232.0,0.01946801]
[1680606012152,0.04901495,28235.0,28232.0,0.02546801]
[1680606012356,0.04901495,28235.0,28232.0,0.01946801]
[1680606012581,0.04901495,28235.0,28232.0,0.01952801]
[1680606012790,0.04901495,28235.0,28233.0,0.00503595]
[1680606012977,0.04901495,28235.0,28233.0,0.01920295]
[1680606013178,0.38615872,28238.0,28233.0,0.0188783]
[1680606013306,0.15543622,28237.0,28233.0,0.05901278]
[1680606013513,0.15543622,28237.0,28233.0,0.0190583]
[1680606013725,0.001,28235.0,28233.0,0.0190583]
[1680606013929,0.15543622,28237.0,28233.0,0.0190583]
[1680606014388,0.15543622,28237.0,28233.0,0.2690583]
[1680606014830,0.15543622,28237.0,28233.0,0.2750583]
[1680606015260,0.07284832,28239.0,28234.0,0.00458954]
[1680606015471,0.07284832,28239.0,28235.0,0.042499]
[1680606015720,0.07284832,28239.0,28236.0,0.083]
[1680606015721,0.06784832,28239.0,28236.0,0.083]
[1680606015931,0.06784832,28239.0,28237.0,0.042496]
[1680606016143,0.06784832,28239.0,28237.0,0.042676]
[1680606016360,0.01810001,28239.0,28237.0,0.292676]
[1680606016800,0.01810001,28239.0,28237.0,0.067676]
[1680606017010,0.01810001,28239.0,28237.0,0.067496]
[1680606017441,0.01810001,28239.0,28238.0,0.3337]
[1680606017647,0.01810001,28239.0,28238.0,0.098045]
[1680606017842,0.01810001,28239.0,28238.0,0.10237848]
[1680606018067,0.01803341,28239.0,28238.0,0.10255848]
[1680606018318,0.01803341,28239.0,28238.0,0.10237848]
[1680606018735,0.01803341,28239.0,28238.0,0.13037848]
[1680606019601,0.01803341,28239.0,28238.0,0.10237848]
[1680606019818,0.01803341,28239.0,28238.0,0.13037848]
[1680606020452,0.01803341,28239.0,28238.0,0.125865]
[1680606020656,0.01803341,28239.0,28238.0,0.12982506]
[1680606020875,0.01803341,28239.0,28238.0,0.10182506]
[1680606021091,0.01803341,28239.0,28238.0,0.12982506]
[1680606021299,0.01803341,28239.0,28238.0,0.10182506]
[1680606021505,0.01803341,28239.0,28238.0,0.12982506]
[1680606021718,0.01803341,28239.0,28238.0,0.08766006]
[1680606021958,0.01803341,28239.0,28238.0,0.01812506]
[1680606022196,0.01803341,28239.0,28238.0,0.04612506]
[1680606022424,0.01803341,28239.0,28238.0,0.01812506]
[1680606022853,0.01803341,28239.0,28238.0,0.04612506]
[1680606023063,0.01803341,28239.0,28238.0,0.03196006]
[1680606023492,0.01803341,28239.0,28238.0,0.4268051]
[1680606023724,0.01803341,28239.0,28238.0,0.30238229]
[1680606023936,0.01803341,28239.0,28238.0,0.68509285]
[1680606024164,0.01803341,28239.0,28238.0,0.90709285]
[1680606024385,0.01803341,28239.0,28238.0,0.92527285]
[1680606024611,0.01803341,28239.0,28238.0,0.90245556]
[1680606024863,0.01803341,28239.0,28238.0,0.93528756]
[1680606025091,0.01803341,28239.0,28238.0,0.90728756]
[1680606025313,0.01803341,28239.0,28238.0,0.93528756]
[1680606025520,0.01803341,28239.0,28238.0,0.90728756]
[1680606025723,0.01803341,28239.0,28238.0,0.302577]
[1680606026602,0.01803341,28239.0,28238.0,0.330577]
[1680606026810,0.01803341,28239.0,28238.0,0.302577]
[1680606027017,0.01803341,28239.0,28238.0,0.330577]
[1680606027234,0.01803341,28239.0,28238.0,0.302577]
[1680606027448,0.01803341,28239.0,28238.0,0.330577]
[1680606027668,0.01803341,28239.0,28238.0,0.302577]
[1680606027877,0.01803341,28239.0,28238.0,0.330577]
[1680606028297,0.01803341,28239.0,28238.0,0.302577]
[1680606028515,0.01803341,28239.0,28238.0,0.330577]
[1680606028744,0.02573157,28243.0,28238.0,0.330577]
[1680606028975,0.02555157,28243.0,28239.0,0.39916985]
[1680606029200,0.4188974,28244.0,28239.0,0.41351385]
[1680606029421,0.4188974,28244.0,28239.0,0.31564985]
[1680606029422,0.34152755,28242.0,28239.0,0.31564985]
[1680606029672,0.34152755,28242.0,28239.0,0.00018]
[1680606029673,0.15480918,28241.0,28239.0,0.00018]
[1680606029897,0.15480918,28241.0,28239.0,0.0315799]
[1680606030131,0.15480918,28241.0,28239.0,0.0035799]
[1680606030590,0.15480918,28241.0,28239.0,0.0215799]
[1680606030812,0.15480918,28241.0,28239.0,0.0035799]
[1680606031493,0.15480918,28241.0,28237.0,0.014165]
[1680606032188,0.33587526,28240.0,28238.0,0.37930149]
[1680606032417,0.15499726,28239.0,28237.0,0.00018]
[1680606032655,0.15499726,28239.0,28235.0,0.12929248]
[1680606032875,0.29689407,28239.0,28235.0,0.12947248]
[1680606033103,0.15499726,28239.0,28238.0,0.018]
[1680606033324,0.20706426,28239.0,28236.0,0.3610892]
[1680606033548,0.46866317,28238.0,28236.0,0.3612692]
[1680606033770,0.62391125,28238.0,28236.0,0.3612692]
[1680606034745,0.62391125,28238.0,28236.0,0.3862692]
[1680606034960,0.62391125,28238.0,28236.0,0.02518]
[1680606035184,0.62391125,28238.0,28236.0,0.025]
[1680606035606,0.62391125,28238.0,28235.0,0.00018]
[1680606035825,0.62391125,28238.0,28236.0,0.005]
[1680606036059,0.62391125,28238.0,28235.0,0.00018]
[1680606036284,0.62391125,28238.0,28234.0,0.33199404]
[1680606036931,0.62391125,28238.0,28235.0,0.15506775]
[1680606037382,0.62391125,28238.0,28235.0,0.15524775]
[1680606037613,0.62393218,28238.0,28235.0,0.15518775]
[1680606037840,0.62381218,28238.0,28235.0,0.15506775]
[1680606038680,0.62381218,28238.0,28235.0,0.16941375]
[1680606038915,0.62381218,28238.0,28235.0,0.18141375]
[1680606039104,0.42431344,28237.0,28235.0,0.16724775]
[1680606040271,0.42431344,28237.0,28235.0,0.15524775]
[1680606040489,0.42431344,28237.0,28235.0,0.16724775]
[1680606040709,0.57968695,28237.0,28235.0,0.012]
[1680606040939,0.15537351,28236.0,28235.0,0.012]
[1680606041181,0.15537351,28236.0,28229.0,2.27732196]
[1680606041182,0.83704732,28236.0,28229.0,2.27732196]
[1680606041410,0.80533238,28235.0,28229.0,0.29624196]
[1680606041648,0.42052039,28234.0,28229.0,0.29624196]
[1680606041883,0.0834,28232.0,28229.0,0.00018]
[1680606042105,0.0834,28232.0,28226.0,0.014171]
[1680606042106,0.2130865,28231.0,28228.0,0.38335457]
[1680606042328,0.29796031,28231.0,28228.0,0.38353457]
[1680606042552,0.052566,28230.0,28229.0,0.11339765]
[1680606042778,0.20875499,28230.0,28229.0,0.11339765]
[1680606042994,0.20875499,28230.0,28229.0,0.10939765]
[1680606042995,0.15618899,28230.0,28229.0,0.10939765]
[1680606043654,0.21805099,28230.0,28229.0,0.11039765]
[1680606045491,0.009,28230.0,28229.0,0.12456665]
[1680606045950,0.009,28230.0,28229.0,0.11039765]
[1680606046403,0.41919564,28232.0,28229.0,0.10939765]
[1680606046625,0.009,28230.0,28229.0,0.11039765]
[1680606047062,0.062506,28230.0,28229.0,0.11039765]
[1680606047283,0.009,28230.0,28229.0,0.11039765]
[1680606049064,0.062885,28230.0,28229.0,0.11039765]
[1680606049299,0.009,28230.0,28229.0,0.11039765]
[1680606049967,0.16518899,28230.0,28229.0,0.11039765]
[1680606050211,0.21771599,28230.0,28229.0,0.001]
[1680606050403,0.56995261,28230.0,28229.0,0.00089859]
[1680606050893,0.21771599,28230.0,28229.0,0.00089859]
[1680606052900,0.21771599,28230.0,28229.0,0.10539662]
[1680606053128,0.16518899,28230.0,28229.0,0.10539662]
[1680606054564,0.009,28230.0,28229.0,0.10539662]
[1680606056696,0.009,28230.0,28229.0,0.11956562]
[1680606057546,0.009,28230.0,28229.0,0.10539662]
[1680606059860,0.16518899,28230.0,28229.0,0.00089859]
[1680606060075,0.21953499,28230.0,28229.0,0.00089859]
[1680606060301,0.21953499,28230.0,28229.0,0.02081417]
[1680606060499,0.16518899,28230.0,28229.0,0.13543879]
[1680606060700,0.22099099,28230.0,28229.0,0.13543879]
[1680606062910,0.16518899,28230.0,28229.0,0.13543879]
[1680606065340,0.16518899,28230.0,28229.0,0.02081417]
[1680606065564,0.67112442,28230.0,28229.0,0.02081417]
[1680606066906,0.78574836,28230.0,28229.0,0.02081417]
[1680606067378,0.34678093,28230.0,28229.0,0.02081417]
[1680606067598,0.80170093,28230.0,28229.0,0.02081417]
[1680606068068,0.81020093,28230.0,28229.0,0.02081417]
[1680606068287,0.81038093,28230.0,28229.0,0.02081417]
[1680606068504,0.80138093,28230.0,28229.0,0.01991558]
[1680606068728,1.05938093,28230.0,28229.0,0.02091558]
[1680606068948,1.05138093,28230.0,28229.0,0.01991558]
[1680606069164,1.05138093,28230.0,28229.0,0.02091558]
[1680606069165,1.07138093,28230.0,28229.0,0.02091558]
[1680606070024,1.24142093,28230.0,28229.0,0.02091558]
[1680606070669,1.07138093,28230.0,28229.0,0.02091558]
[1680606070885,1.32512093,28230.0,28229.0,0.02091558]
[1680606072617,1.32494093,28230.0,28229.0,0.02082385]
[1680606073273,1.32494093,28230.0,28229.0,0.0118092]
[1680606074220,1.52931033,28230.0,28229.0,0.0028682]
[1680606074900,2.54211827,28230.0,28229.0,0.0028682]
[1680606075123,1.82931033,28230.0,28229.0,0.0028682]
[1680606075812,0.6218,28225.0,28224.0,0.00011008]
[1680606076033,1.21844254,28225.0,28224.0,0.00011008]
[1680606076303,1.24664573,28225.0,28224.0,0.00011008]
[1680606077981,1.27364573,28225.0,28224.0,0.00011008]
[1680606079501,1.27364573,28225.0,28222.0,0.00011008]
[1680606079722,0.86214206,28223.0,28222.0,0.00011008]
[1680606079941,0.95391106,28223.0,28222.0,0.00029008]
[1680606081105,1.3127533,28223.0,28222.0,0.00029008]
[1680606081324,1.2857533,28223.0,28222.0,0.00029008]
[1680606081807,1.3127533,28223.0,28222.0,0.00029008]
[1680606082045,1.54408621,28223.0,28222.0,0.00029008]
[1680606082726,1.38234397,28223.0,28222.0,0.00029008]
[1680606083171,1.58225641,28223.0,28222.0,0.00029008]
[1680606083426,1.66595641,28223.0,28222.0,0.00011008]
[1680606084333,1.63895641,28223.0,28222.0,0.00011008]
[1680606084782,1.66595641,28223.0,28222.0,0.00011008]
[1680606085006,1.96595641,28223.0,28222.0,0.00011008]
[1680606087085,0.58457006,28223.0,28222.0,0.04024456]
[1680606087336,0.58457006,28223.0,28222.0,0.39291084]
[1680606087337,0.23745006,28223.0,28222.0,0.39291084]
[1680606087559,0.23745006,28223.0,28222.0,0.35784628]
[1680606087789,0.15694206,28223.0,28222.0,0.35784628]
[1680606088236,0.23847206,28223.0,28222.0,0.35784628]
[1680606089140,0.21147206,28223.0,28222.0,0.35784628]
[1680606089596,0.15694206,28223.0,28222.0,0.35784628]
[1680606089821,0.17694206,28223.0,28222.0,0.35784628]
[1680606090489,0.23137606,28223.0,28222.0,0.35784628]
[1680606091389,0.22885206,28223.0,28222.0,0.35784628]
[1680606091607,0.17694206,28223.0,28222.0,0.35784628]
[1680606091728,0.15694206,28223.0,28222.0,0.35784628]
[1680606092158,0.17518338,28223.0,28222.0,0.3754331]
[1680606092813,0.22774938,28223.0,28222.0,0.3754331]
[1680606093102,0.22598875,28223.0,28222.0,0.3754331]
[1680606094212,0.22420028,28223.0,28222.0,0.3754331]
[1680606095086,0.22242184,28223.0,28222.0,0.3754331]
[1680606095762,0.20242184,28223.0,28222.0,0.3754331]
[1680606095977,0.17685584,28223.0,28222.0,0.3754331]
[1680606096190,0.22978128,28223.0,28222.0,0.3754331]
[1680606097087,0.17332855,28223.0,28222.0,0.3754331]
[1680606098184,0.17157959,28223.0,28222.0,0.3754331]
[1680606098605,0.17157959,28223.0,28222.0,0.01776682]
[1680606098830,0.22384659,28223.0,28222.0,0.01758682]
[1680606099076,0.22210734,28223.0,28222.0,0.01758682]
[1680606100199,0.22037776,28223.0,28222.0,0.01758682]
[1680606101249,0.21865779,28223.0,28222.0,0.01758682]
[1680606101659,0.21865779,28223.0,28222.0,0.32471621]
[1680606101954,0.21865779,28223.0,28222.0,0.32489621]
[1680606102161,0.21694737,28223.0,28222.0,0.32489621]
[1680606103175,0.21524645,28223.0,28222.0,0.01776682]
[1680606103393,0.21524645,28223.0,28222.0,0.01758682]
[1680606104243,0.21355498,28223.0,28222.0,0.01758682]
[1680606104448,0.21355498,28223.0,28222.0,0.15306945]
[1680606105195,0.21355498,28223.0,28222.0,0.15296802]
[1680606105411,0.21187291,28223.0,28222.0,0.15296802]
[1680606106364,0.21020075,28223.0,28222.0,0.15296802]
[1680606107244,0.20853788,28223.0,28222.0,0.15296802]
[1680606108325,0.20688425,28223.0,28222.0,0.15296802]
[1680606108994,0.15461725,28223.0,28222.0,0.15296802]
[1680606109217,0.1529728,28223.0,28222.0,0.15296802]
[1680606109438,0.2070188,28223.0,28222.0,0.15296802]
[1680606109661,0.1529728,28223.0,28222.0,0.15296802]
[1680606109881,0.2064908,28223.0,28222.0,0.15296802]
[1680606110291,0.20485549,28223.0,28222.0,0.15296802]
[1680606110858,0.15133749,28223.0,28222.0,0.15296802]
[1680606111264,0.14971126,28223.0,28222.0,0.15296802]
[1680606112315,0.14809407,28223.0,28222.0,0.15296802]
[1680606113165,0.14648586,28223.0,28222.0,0.15296802]
[1680606114350,0.14488659,28223.0,28222.0,0.15296802]
[1680606114816,0.14488659,28223.0,28222.0,0.15352757]
[1680606115026,0.19546559,28223.0,28222.0,0.15352757]
[1680606115238,0.1432962,28223.0,28222.0,0.15352757]
[1680606116304,0.14171465,28223.0,28222.0,0.15352757]
[1680606117274,0.14014188,28223.0,28222.0,0.15352757]
[1680606117694,0.14014188,28223.0,28222.0,0.15296802]
[1680606118357,0.19410285,28223.0,28222.0,0.15296802]
[1680606118524,0.13857785,28223.0,28222.0,0.15296802]
[1680606119136,0.13702251,28223.0,28222.0,0.15296802]
[1680606119332,0.19087051,28223.0,28222.0,0.15296802]
[1680606119886,0.20079051,28223.0,28222.0,0.15296802]
[1680606120920,0.19087051,28223.0,28222.0,0.15296802]
[1680606121974,0.20079051,28223.0,28222.0,0.15296802]
[1680606122433,0.19087051,28223.0,28222.0,0.15296802]
[1680606123256,0.18913047,28223.0,28222.0,0.15296802]
[1680606124109,0.18913047,28223.0,28222.0,0.16363603]
[1680606126857,0.19905047,28223.0,28222.0,0.16363603]
[1680606127948,0.19905047,28223.0,28221.0,0.25011907]
[1680606128161,0.053661,28222.0,28221.0,0.24993907]
[1680606128435,0.16219456,28222.0,28221.0,0.24993907]
[1680606128742,0.17211556,28222.0,28221.0,0.00018]
[1680606129024,0.17211556,28222.0,28220.0,9.99919423]
[1680606129287,0.16250634,28221.0,28220.0,9.99919423]
[1680606131455,0.16250634,28221.0,28220.0,10.09665599]
[1680606131691,0.17650634,28221.0,28220.0,10.09665599]
[1680606131935,0.17650634,28221.0,28220.0,9.99919423]
[1680606133223,0.17650634,28221.0,28220.0,10.11007276]
[1680606136300,0.17381877,28221.0,28220.0,10.13694845]
[1680606137837,0.17381877,28221.0,28220.0,10.13676845]
[1680606145194,0.17399877,28221.0,28220.0,9.94860948]
[1680606146559,0.17292377,28221.0,28220.0,9.94860948]
[1680606147665,0.12008877,28221.0,28220.0,9.94860948]
[1680606147881,0.17186777,28221.0,28220.0,9.94860948]
[1680606148098,0.17204777,28221.0,28220.0,9.94860948]
[1680606149225,0.16931054,28221.0,28220.0,9.94872948]
[1680606149466,0.16919054,28221.0,28220.0,9.94878948]
[1680606150372,0.1665236,28221.0,28220.0,9.94878948]
[1680606151252,0.16386692,28221.0,28220.0,9.94878948]
[1680606151476,0.11190792,28221.0,28220.0,9.94878948]
[1680606151698,0.16641392,28221.0,28220.0,9.94860948]
[1680606151914,0.16641392,28221.0,28220.0,9.94878948]
[1680606152360,0.10926146,28221.0,28220.0,9.94878948]
[1680606152583,0.10926146,28221.0,28220.0,9.94860948]
[1680606153362,0.10662518,28221.0,28220.0,9.94860948]
[1680606153589,0.16052818,28221.0,28220.0,9.94860948]
[1680606153818,0.16052818,28221.0,28220.0,9.94878948]
[1680606154323,0.10662518,28221.0,28220.0,9.94878948]
[1680606154545,0.15966818,28221.0,28220.0,9.94860948]
[1680606154760,0.15966818,28221.0,28220.0,9.94878948]
[1680606157156,0.15704247,28221.0,28220.0,9.94878948]
[1680606160197,0.15442686,28221.0,28220.0,9.94878948]
[1680606162409,0.15493186,28221.0,28220.0,9.94878948]
[1680606163267,0.15232631,28221.0,28220.0,9.94878948]
[1680606164176,0.14973078,28221.0,28220.0,9.94878948]
[1680606164386,0.09618278,28221.0,28220.0,9.94878948]
[1680606164572,0.14956578,28221.0,28220.0,9.94860948]
[1680606164791,0.09618278,28221.0,28220.0,9.83791095]
[1680606165074,0.09618278,28221.0,28220.0,10.033005]
[1680606165292,0.09359723,28221.0,28220.0,10.033005]
[1680606166271,0.09102163,28221.0,28220.0,10.033005]
[1680606166928,0.14563563,28221.0,28220.0,10.033005]
[1680606167149,0.09102163,28221.0,28220.0,10.033005]
[1680606167375,0.08845593,28221.0,28220.0,10.033005]
[1680606168713,0.14490893,28221.0,28220.0,10.033005]
[1680606168989,0.13967793,28221.0,28220.0,10.033005]
[1680606169232,0.13713849,28221.0,28220.0,10.033005]
[1680606173589,0.13737849,28221.0,28220.0,10.033005]
[1680606175414,0.13737849,28221.0,28220.0,9.86329135]
[1680606178662,0.13737849,28221.0,28220.0,9.67855176]
[1680606180889,0.14729949,28221.0,28220.0,9.67855176]
[1680606181676,0.0754,28222.0,28221.0,0.25]
[1680606183027,0.138665,28222.0,28221.0,0.44756752]
[1680606192804,0.96407836,28222.0,28221.0,0.0262087]
[1680606193073,1.34897102,28222.0,28221.0,0.0262087]
[1680606193345,1.43417836,28222.0,28221.0,0.0262087]
[1680606193571,1.50125102,28222.0,28221.0,0.02510267]
[1680606193788,1.52425102,28222.0,28221.0,0.02510267]
[1680606194011,1.50125102,28222.0,28221.0,0.02510267]
[1680606194230,1.52825102,28222.0,28221.0,0.02510267]
[1680606194444,1.44335836,28222.0,28221.0,0.02510267]
[1680606194720,1.61205102,28222.0,28221.0,0.02510267]
[1680606194936,1.25902921,28222.0,28221.0,0.02510267]
[1680606195395,2.21854695,28222.0,28221.0,0.01625967]
[1680606195618,1.92142265,28222.0,28221.0,0.00724218]
[1680606195836,1.92142265,28222.0,28220.0,9.45658202]
[1680606195837,0.82171244,28221.0,28220.0,9.45566513]
[1680606196098,2.14428597,28221.0,28220.0,9.45584513]
[1680606196314,2.31456597,28221.0,28220.0,9.45566513]
[1680606196549,2.1175908,28221.0,28220.0,9.45566513]
[1680606196776,2.2947608,28221.0,28220.0,9.35600353]
[1680606196996,2.3217608,28221.0,28220.0,9.35600353]
[1680606197454,1.97196746,28221.0,28220.0,9.34529368]
[1680606197682,2.14056612,28221.0,28220.0,9.24587355]
[1680606197898,2.37938664,28221.0,28220.0,9.23584073]
[1680606198118,2.47575714,28221.0,28220.0,9.23584073]
[1680606198337,2.27927338,28221.0,28220.0,9.23584073]
[1680606198771,2.9401268,28221.0,28220.0,9.21561073]
[1680606198989,2.85198908,28221.0,28220.0,9.21561073]
[1680606199422,3.1557223,28221.0,28220.0,9.21561073]
[1680606199639,2.87898908,28221.0,28220.0,9.20519172]
[1680606199917,2.64128507,28221.0,28220.0,9.20519172]
[1680606200141,2.71076566,28221.0,28220.0,9.1658813]
[1680606200362,2.68376566,28221.0,28220.0,9.1658813]
[1680606200581,2.63985667,28221.0,28220.0,9.1658813]
[1680606201007,2.51383044,28221.0,28220.0,9.1658813]
[1680606201445,2.66670776,28221.0,28220.0,9.1658813]
[1680606201666,3.01728533,28221.0,28220.0,9.1560013]
[1680606201879,2.51250622,28221.0,28220.0,9.15231811]
[1680606202313,2.47046333,28221.0,28220.0,9.15231811]